Cogmind - Beta 9.2 @@@ ROGUE MODE // 2019.11.29 @ 12:38:25 Player: Cipherpunk Result: Destroyed by Y-45 Defender with Beam Rifle Performance ------------- Evolutions (1) 500 Regions Visited (2) 400 Robots Destroyed (9) 45 Value Destroyed (157) 157 Prototype IDs (0) 0 Alien Tech Used (0) 0 Bonus (0) 0 TOTAL SCORE: 1102 Bonus ------- None Cogmind --------- Core Integrity 0/400 Matter 200/300 Energy 50/240 System Corruption 12% Temperature Cool (10) Movement Flying (120) Ox1 Location -9/Materials Parts ------- > --- POWER (1) -------- Nuclear Core > --- PROPULSION (2) --- Flight Unit > --- UTILITY (4) ------ Visual Processing Unit Signal Interpreter Improved Terrain Scanner System Shield > --- WEAPON (2) ------- (None) > --- INVENTORY (4) ---- Small Storage Unit Improved Datajack Peak State ------------ > --- POWER ------------ Nuclear Core > --- PROPULSION ------- Flight Unit Flight Unit > --- UTILITY ---------- Visual Processing Unit Signal Interpreter Improved Terrain Scanner System Shield > --- WEAPON ----------- Light Assault Rifle > --- INVENTORY -------- Nuclear Core Flight Unit Small Storage Unit Datajack [Rating: 14] Favorites ----------- Power Light Ion Engine Engine Light Ion Engine Power Core Nuclear Core Propulsion Wheel Wheel Wheel Flight Unit Flight Unit Utility Improved Terrain Scanner Device Improved Terrain Scanner Storage Small Storage Unit Processor Seismic Analyzer Hackware System Shield Weapon Small Laser Energy Gun Small Laser Ballistic Gun Light Assault Rifle Special Weapon Mining Laser Build | -11 -10 -9 ------- Run | Scr Mat Mat Slots Evolved 2 | . . 2 Power . | . . . Propulsion . | . . . Utility 2 | . . 2 Weapon . | . . . Parts Attached 32 | 9 1 22 Power 7 | 2 . 5 Engine 5 | 2 . 3 Core 2 | . . 2 Reactor . | . . . Propulsion 7 | 2 . 5 Treads . | . . . Leg . | . . . Wheel 2 | 2 . . Hover . | . . . Flight 5 | . . 5 Utility 12 | 3 1 8 Device 5 | 1 1 3 Storage 2 | 1 . 1 Processor 4 | 1 . 3 Hackware 1 | . . 1 Protection . | . . . Artifact . | . . . Weapon 6 | 2 . 4 Energy Gun 3 | 2 . 1 Energy Cannon . | . . . Ballistic Gun 2 | . . 2 Ballistic Cannon . | . . . Launcher . | . . . Special Weapon 1 | . . 1 Impact Weapon . | . . . Slashing Weapon . | . . . Piercing Weapon . | . . . Special Melee Weapon . | . . . Unidentified Prototypes . | . . . Parts Lost 16 | . . 16 Power 2 | . . 2 Propulsion 5 | . . 5 Utility 4 | . . 4 Weapon 5 | . . 5 Highest Loss Streak 10 | . . 10 Average Slot Usage (%) 84 | . 100 79 Engine 11 | . 14 10 Wheel 13 | . 28 9 Flight 7 | . . 9 Device 16 | . 14 17 Processor 12 | . 14 12 Hackware 1 | . . 2 Energy Gun 12 | . 28 8 Ballistic Gun 4 | . . 6 Special Weapon 1 | . . 2 Naked Turns . | . . . Heaviest Build 13 | 13 7 9 Greatest Support 20 | 20 20 20 Greatest Overweight (x) 2 | . . 2 Average Overweight (x) . | . . . Largest Inventory Capacity 6 | 6 4 6 Average Capacity 4 | 5 4 4 Most Carried 5 | 5 4 4 Average Carried 3 | 3 3 2 Final Capacity 4 | 4 4 4 Final Carried 4 | 4 4 2 Class Distribution -------------------- 54% | Mutant 25% | Scavenger-Mutant 9% | Infiltrator-Skirmisher 5% | Infiltrator-Mutant 3% | Scavenger-Skirmisher Dominant Class ---------------- Mutant | -10/Materials Scavenger-Mutant | -9/Materials Resources | -11 -10 -9 ----------- Run | Scr Mat Mat Matter Collected 372 | 272 . 100 Remotely . | . . . Salvage Created 274 | 77 . 197 Parts 17 | 6 . 11 Haulers Intercepted . | . . . Recyclers Shooed . | . . . Parts Field Recycled . | . . . Retrieved Matter . | . . . Parts Self-Destructed . | . . . Prevented . | . . . Kills | -11 -10 -9 ------- Run | Scr Mat Mat Combat Hostiles Destroyed 7 | . . 7 Guns 6 | . . 6 Cannons 1 | . . 1 Classes Destroyed 5 | 2 . 3 Tunneler 1 | 1 . . Recycler 1 | 1 . . Swarmer 4 | . . 4 Grunt 2 | . . 2 Brawler 1 | . . 1 Best Kill Streak 7 | 2 . 7 Combat Bots Only 7 | . . 7 Max Kills in Single Turn 1 | 1 . 1 Gunslinging . | . . . Exploded . | . . . Melee . | . . . Uniques/NPCs Destroyed . | . . . Combat | -11 -10 -9 -------- Run | Scr Mat Mat Damage Taken 1054 | . . 1054 Core 404 | . . 404 Absorbed by Shields . | . . . Core Remaining (%) 100 | 100 100 . Volleys Fired 33 | 6 . 27 Largest 2 | 2 . 2 Hottest 150 | 90 . 150 Shots Fired 49 | 12 . 37 Gun 46 | 12 . 34 Cannon . | . . . Launcher . | . . . Special 3 | . . 3 Kinetic 22 | . . 22 Thermal 27 | 12 . 15 Explosive . | . . . Electromagnetic . | . . . Robot Hit Streak 5 | 2 . 5 Robot Miss Streak 3 | 1 . 3 Penetration Max . | . . . Secondary Targets 1 | . . 1 Max Gunslinging Chain 1 | . . 1 Shots Hit Robots 29 | 7 . 22 Core Hits 16 | 3 . 13 Critical Hits . | . . . Critical Kills . | . . . Critical Parts Destroyed . | . . . Melee Attacks . | . . . Impact . | . . . Slashing . | . . . Piercing . | . . . Sneak Attacks . | . . . Combat Hostiles . | . . . Follow-up Attacks . | . . . Damage Inflicted 289 | 72 . 217 Guns 265 | 72 . 193 Cannons . | . . . Explosions . | . . . Melee . | . . . Ramming . | . . . Kinetic 103 | . . 103 Thermal 186 | 72 . 114 Explosive . | . . . Electromagnetic . | . . . Impact . | . . . Slashing . | . . . Piercing . | . . . Highest Corruption 12 | . . 12 Average Corruption 11 | . . 11 Corruption Purged . | . . . Effects 6 | . . 6 Message Errors 1 | . . 1 Matter Fused 1 | . . 1 Heat Flow Errors 2 | . . 2 Alerts 1 | . . 1 Targeting Errors 1 | . . 1 Overload Shots . | . . . Overflow Damage . | . . . Projectiles . | . . . Explosions . | . . . Melee . | . . . Knockbacks . | . . . Impact . | . . . Kinetic . | . . . Secondary . | . . . Self-Inflicted Damage . | . . . Shots . | . . . Rammed . | . . . Targets Rammed . | . . . Kicked . | . . . Crushed . | . . . Highest Temperature 220 | 90 . 220 Average Temperature 48 | 32 . 54 Received Heat Transfer 189 | . . 189 Siege Activations . | . . . Robots Corrupted . | . . . Combat Hostiles . | . . . Parts Fried . | . . . Impact Corruptions . | . . . Robots Melted . | . . . Combat Hostiles . | . . . Parts Melted . | . . . Heat Transferred 472 | 198 . 274 Parts Sabotaged . | . . . Parts Stolen . | . . . Parts Stripped . | . . . Power Chain Reactions . | . . . Missiles Intercepted . | . . . Alert | -11 -10 -9 ------- Run | Scr Mat Mat Peak Influence 120 | 10 21 120 Average Influence 34 | 3 10 52 Maximum Alert Level . | . . . Low Security (%) 100 | 100 100 100 Level 1 . | . . . Level 2 . | . . . Level 3 . | . . . Level 4 . | . . . Level 5 . | . . . High Security . | . . . Max Security . | . . . Squads Dispatched . | . . . Investigation . | . . . Extermination . | . . . Reinforcement . | . . . Assault . | . . . Garrison . | . . . Intercept . | . . . Construction Impeded . | . . . Haulers Reinforced . | . . . Stealth | -11 -10 -9 --------- Run | Scr Mat Mat Distress Signals . | . . . Communications Jammed . | . . . Distress Signals . | . . . Times Spotted 21 | . 3 18 Peak Tracking Total 10 | . 3 10 Tactical Retreats 1 | . . 1 Traps | -11 -10 -9 ------- Run | Scr Mat Mat Traps Triggered . | . . . Indirectly . | . . . Trap Hack Attempts . | . . . Triggered . | . . . Disarmed . | . . . Reprogrammed . | . . . Reused . | . . . Traps Extracted . | . . . Installed . | . . . Triggered . | . . . Machines | -11 -10 -9 ---------- Run | Scr Mat Mat Machines Disabled . | . . . Max in Single Turn . | . . . Machines Sabotaged . | . . . Garrisons Compromised . | . . . Overloaded Fab Kills . | . . . Fab Network Shutdowns . | . . . Hacking | -11 -10 -9 --------- Run | Scr Mat Mat Machines Accessed . | . . . Terminals . | . . . Fabricators . | . . . Repair Stations . | . . . Recycling Units . | . . . Scanalyzers . | . . . Garrison Access . | . . . Total Hacks . | . . . Successful . | . . . Failed . | . . . Catastrophic . | . . . Database Lockouts . | . . . Manual . | . . . Terminals . | . . . Fabricators . | . . . Repair Stations . | . . . Recycling Units . | . . . Scanalyzers . | . . . Garrison Access . | . . . Terminal Hacks . | . . . Fabricator Hacks . | . . . Repair Station Hacks . | . . . Recycling Unit Hacks . | . . . Scanalyzer . | . . . Garrison Access Hacks . | . . . Unauthorized Hacks . | . . . Terminals . | . . . Fabricators . | . . . Repair Stations . | . . . Recycling Units . | . . . Scanalyzers . | . . . Garrison Access . | . . . Data Cores Recovered . | . . . Used . | . . . Hacking Detections . | . . . Full Trace Events . | . . . Feedback Events . | . . . Feedback Blocked . | . . . Robot Schematics Acquired . | . . . Robots Built . | . . . Matter . | . . . Time . | . . . Total Robot Build Rating . | . . . Part Schematics Acquired . | . . . Parts Built . | . . . Matter . | . . . Time . | . . . Total Part Build Rating . | . . . Parts Repaired . | . . . Time . | . . . Parts Recycled . | . . . Recycled Matter . | . . . Retrieved Matter . | . . . Retrieved Components . | . . . Parts Scanalyzed . | . . . Part Schematics Acquired . | . . . Parts Damaged . | . . . Bothacking | -11 -10 -9 ------------ Run | Scr Mat Mat Used RIF Installer . | . . . Robots Hacked . | . . . Non-combat . | . . . Combat . | . . . Robot Hacks Applied . | . . . Relay Couplers Released . | . . . Robots Rewired . | . . . Allies Hacked . | . . . Hacks Repelled . | . . . Allies | -11 -10 -9 -------- Run | Scr Mat Mat Total Allies . | . . . Largest Group . | . . . Highest-Rated Group . | . . . Highest-Rated Ally . | . . . Total Orders . | . . . Ally Attacks . | . . . Total Damage . | . . . Kills . | . . . Allies Corrupted . | . . . Allies Melted . | . . . Intel | -11 -10 -9 ------- Run | Scr Mat Mat Robot Analysis Total . | . . . Derelict Logs Recovered . | . . . Drone Launches . | . . . Drone Recoveries . | . . . Exploration | -11 -10 -9 ------------- Run | Scr Mat Mat Turns Passed 532 | 118 87 327 Spaces Moved 568 | 96 100 372 Core 7 | 2 . 5 Treads . | . . . Legs . | . . . Wheels 290 | 94 100 96 Hover . | . . . Flight 271 | . . 271 Fastest Speed 37 | 50 80 37 Average Speed 60 | 79 80 50 Slowest Speed 150 | 80 80 150 Overloaded Moves . | . . . Propulsion Burnouts . | . . . Robots Hopped 4 | . . 4 Cave-ins Triggered . | . . . Exploration Rate (%) 19 | 6 21 31 Regions Visited 2 Branch Regions . Pre-discovered Areas . | . . . Known Exits Taken . | . . . Unknown Exits Taken 2 | 1 1 . Scrap Searched . | . . . Spaces Dug 2 | . . 2 Terrain Destroyed 2 | . . 2 Melee . | . . . Projectile 2 | . . 2 AOE . | . . . Actions | -11 -10 -9 --------- Run | Scr Mat Mat Total 701 | 124 107 470 Wait 29 | 1 1 27 Move 558 | 95 99 364 Hop 4 | . . 4 Pick Up 21 | 7 3 11 Fast Attach 21 | 8 . 13 Attach 7 | 1 . 6 Detach 5 | 2 . 3 Swap 4 | . 1 3 Drop 19 | 4 3 12 Fire 33 | 6 . 27 Melee . | . . . Ram . | . . . Kick . | . . . Crush . | . . . Escape Stasis . | . . . Rewire . | . . . Trap . | . . . Miscellaneous . | . . . Route ------- -11/Scrapyard -10/Materials (discovered 2 exits: [*Mat] / [*Min]) -9/Materials (discovered 1 exit: *Min) History --------- Turn | Location | Event 13 | -11/Scrapyard | Discovered new exit (range 15) 119 | -11/Scrapyard | Entered Materials 137 | -10/Materials | Discovered new exit (range 7) 195 | -10/Materials | Discovered new exit (range 4) 206 | -10/Materials | Entered another Materials area 206 | -9/Materials | Evolved 2 slots: Utility x2 354 | -9/Materials | System corruption reached 10% 384 | -9/Materials | Lost 10 parts (1p2n4u3w) 395 | -9/Materials | Destroyed 7 combat bots 453 | -9/Materials | Discovered new exit (range 9) 469 | -9/Materials | Core integrity fell below 50% 472 | -9/Materials | Identified exit to Mines 529 | -9/Materials | Core integrity fell below 20% 533 | -9/Materials | Destroyed by Y-45 Defender with Beam Rifle Last Messages --------------- 00482_ Dropped Lgt. Ion Engine. 00483_ Acquired Nuclear Core. 00484_ Dropped Datajack. 00485_ Acquired Lgt. Ion Engine. 00487_ Dropped Nuclear Core. 00488_ Acquired Lgt. Ion Engine. 00489_ Dropped Nuclear Core. 00490_ Acquired Imp. Datajack. 00495_ Dropped Flight Unit. 00496_ Dropped Lgt. Ion Engine. 00497_ Acquired Flight Unit. 00503_ S,FIGZY#3LP14V=TPGSQX|> 00507_ Lgt. Assault Rifle destroyed. 00521_ Lgt. Ion Engine destroyed. 00524_ Flight Unit destroyed. 00524_ A-02 Transporter destroyed. 00527_ Flight Unit destroyed. 00527_ K-01 Serf collects debris. 00527_ Flight Unit destroyed. 00531_ Acquired Nuclear Core. Map ----- +----------------------------------------------------+ | ???????# #???# #???????????? | | ???????# #???# #???????????? | | ???????# #???# ##########??? | | #+###### #???# # #??? | | #???# # #??? | | #???# # #??? | | " == ##??# # #??? | | T == T#??# / #??? | | " ##??# # #??? | | ##### # #??? | | # #??? | | #+##+######## + #??? | | # #??# ####+#####+####??? | | #""" #??# #?# ?#? #?????? | | #""" #??# #?# #? #??#??? | | #""" #??# #?# "T" #? #?????? | | + #### ### """ ## #???#?? | | #""" ## ######## ##????? | | #""" ## * #???#? | | ##?"" # > ##?#?? | | ! #?? ## #????? | | !! #???#/###### #######g #????? | | !! #???? ?????#######?#####Y #????? | | #???? ???#?????????#!! l #????? | | #???? ?????????????#! #????? | | #???? ???????##????# @ #???#? | | #???? ????#????????#* #????? | | #???? ?????????????#/ #????? | | ## #????????????#?????#// ###### | | ?# #???????????????#??##### # # | | ?? #???????????????######## # | "# | | ?? #???????????????# [! #Y Y# T# | | ?? #???????????#???# [! # Y # "# | | ?? ???????????????# !! / + # | | ?? ???????????????# # # # | | ?? ?????????#?#???# * # # # | | ?? ???????????????# # # # | | ?? ???????????????######## # # | | ??????????????????????#???# ###### | | ????????????????????????#?# #????? | | ???????????????#????????### ###??? | | ????????????????????????# #??? | | ????????????????????????# #??? | | ????????????????????????# #??? | | ??????????????????T??#??# #??? | | ????????????????????????# ! #??? | | ????????????"???????????# =[[ #??? | | ?????????? ?????????????#![%[! #??? | | ?????????????????###########+#+##??? | | ?????????????????# # | +----------------------------------------------------+ Best States ------------- Heat Dissipation 28 Energy Generation 10 Energy Capacity 250 Matter Stores 300 Matter Capacity 300 Sight Range 18 Terrain Scan Range 16 Terrain Scan Density 60 ECM Strength 1 Evasion (%) 62 Defensive Hacking 10 Item Schematics ----------------- None Robot Schematics ------------------ None Fabricated ------------ Nothing Alien Tech Used ----------------- None Achievements -------------- None Challenges ------------ None Game ------ Seed FlakPoweredMultirail Manual? 0 Play Time 00:16:30 Cumulative 25.5 hours Start 2019.11.29 @ 12:24:55 End 2019.11.29 @ 12:38:25 Sessions 1 Manual Loads 0 Difficulty Rogue Special Mode None Game No. 24 Rogue 24 Adventurer 0 Explorer 0 Win Type - Total 0 Types 0/0/0/0/0/0/0 Lore% 16 Gallery% 32 Achievement% 19 Wizard Run 0 Options --------- ASCII 0 Keyboard 1 Movement Numpad Keybinds 0 Fullscreen 2 Font 18/SmallcapsGlow Map View 76x50 Tactical HUD 1 Map Filters NONE Filters NONE Steam 1 RUN: 12c93ab8-29ea-4c57-bcde-3813011c1060